[Event "DFMM-LV 2023"]
[Site "Braunfels"]
[Date "2023.06.09"]
[Round "3.42"]
[White "Skibbe, Diana"]
[Black "Albayrak, Nese Pinar"]
[Result "1/2-1/2"]
[Annotator "TA"]
[ECO "C89"]
[WhiteElo "1956"]
[BlackElo "1763"]
[PlyCount "110"]
[EventDate "2023.06.09"]
[EventType "team-tourn"]
[EventCountry "GER"]
[SourceTitle "playchess.com"]
[Source "ChessBase"]
[SourceQuality "1"]
[TimeControl "40/5400+30:1800+30"]

{[%evp 23,110,39,34,-24,-12,-93,-39,-41,-39,-37,-25,-33,-26,-24,-25,-16,-17,-35,-33,-66,-12,-6,-4,-41,-33,-33,-41,-29,-10,-12,0,-81,-66,-81,-73,-73,-79,-77,-72,-72,-47,-81,-37,-100,-60,-132,-125,-174,-125,-135,0,-163,-145,-145,-140,-147,-147,-145,-145,-137,-135,-157,-145,-147,-8,-29,-14,-42,0,0,39,39,39,39,39,29,29,17,17,17,17,8,8,8,8,0,8,8,8]} 1. e4 {[%emt 0:00:02]} e5 {[%emt 0:00:06]} 2. Nf3 {[%emt 0:00:05]} Nc6 {[%emt 0:00:04]} 3. Bb5 {[%emt 0:00:02]} a6 {[%emt 0:00:04]} 4. Ba4 {[%emt 0:00:06]} Nf6 {[%emt 0:00:08]} 5. O-O {[%emt 0:00:13]} Be7 {[%emt 0:00:11]} 6. Re1 {[%emt 0:00:34]} b5 {[%emt 0:00:16]} 7. Bb3 {[%emt 0:00:02]} O-O {[%emt 0:00:09]} 8. c3 {[%emt 0:00:19]} d5 {[%emt 0:01:13]} 9. exd5 {[%emt 0:01:15]} Nxd5 {[%emt 0:00:03]} 10. Nxe5 {[%emt 0:02:40]} Nxe5 {[%emt 0:00:07]} 11. Rxe5 {[%emt 0:00:12]} c6 {[%emt 0:00:13]} 12. d4 {[%emt 0:03:14] 12.Re1 is the recent fashion.} Bd6 {[%emt 0:00:21]} 13. Bg5 {[%emt 0:07:43] C89: Closed Ruy Lopez: Marshall Attack.} (13. Re1 $14) 13... Qc7 $11 {[%emt 0:15:53] [#]} 14. f4 $146 {[%emt 0:03:11]} ({Predecessor:} 14. Re1 Bxh2+ 15. Kh1 Bf4 16. Bxd5 Bxg5 17. Bf3 Qd6 18. Nd2 Qh6+ 19. Kg1 Bxd2 20. Re2 Bf4 {0-1 Hogan,B (1595)-Wernitz,H (1618) LSS No Engine Cup 195 Preliminary 0 2019}) 14... Bxe5 {[%emt 0:12:29]} ({Better is} 14... h6 $17 15. Bxd5 (15. Rxd5 $2 cxd5 16. Bxd5 Rb8 $19) 15... cxd5) 15. fxe5 $15 {[%emt 0:00:11] Black is slightly better.} Qd7 {[%emt 0:03:32]} 16. Nd2 {[%emt 0:01:06][%cal Bb1d2,Bd2f3,Bf3e1,Be1d3,Bd3c5][%mdl 32]} Qf5 {[%emt 0:16:16]} 17. Nf3 {[%emt 0:00:12]} Qg6 {[%emt 0:06:59]} 18. Qd2 {[%emt 0:01:44]} h6 {[%emt 0:02:34]} 19. Bh4 {[%emt 0:03:21]} Bg4 {[%emt 0:05:00]} 20. Ne1 {[%emt 0:01:15]} Qe4 {[%emt 0:07:12]} 21. Bf2 {[%emt 0:06:30]} f6 {[%emt 0:04:27]} (21... Qe2 $15 22. Rd1 Qxd2 23. Rxd2 a5) 22. Nd3 $11 {[%emt 0:02:00]} Qe2 {[%emt 0:08:17] Against Re1} 23. Bxd5+ {[%emt 0:05:07]} (23. Be3 {keeps more tension.} Kh7 24. Re1 Qxd2 25. Bxd2 Bf5 26. Nc5) 23... cxd5 {[%emt 0:00:08]} 24. Qxe2 {[%emt 0:00:12]} Bxe2 {[%emt 0:00:06]} 25. Nc5 {[%emt 0:03:59]} fxe5 {[%emt 0:03:31] And now ...Rf7 would win.} 26. Re1 {[%emt 0:01:27]} Bg4 {[%emt 0:00:44]} 27. Rxe5 {[%emt 0:00:41]} (27. dxe5 $11 {remains equal.} Bf5 28. h3) 27... Rf5 $36 {[%emt 0:04:46][%mdl 2048] Black has good play.} 28. h3 {[%emt 0:01:46]} Rxe5 {[%emt 0:00:55]} 29. dxe5 $17 {[%emt 0:00:03][%mdl 4096] Endgame KRB-KBN} Bf5 {[%emt 0:00:21]} 30. Bd4 {[%emt 0:00:10]} h5 {[%emt 0:01:44]} 31. Kf2 {[%emt 0:00:24]} Kf7 {[%emt 0:01:48]} 32. Kf3 {[%emt 0:00:20]} Ke7 {[%emt 0:01:49][%cal Of5e4]} 33. Ke3 {[%emt 0:01:03]} (33. Kf4 $15 Bb1 34. a3) 33... a5 {[%emt 0:01:06]} 34. a3 {[%emt 0:00:17]} (34. Kf4 $15 Bc2 35. Kg5) 34... g5 {[%emt 0:02:45]} 35. Kd2 {[%emt 0:04:10]} (35. Nb7 $17 {was worth a try.}) 35... Rf8 {[%emt 0:00:54]} (35... h4 $19 36. Ke2 Rg8) 36. Nb7 {[%emt 0:00:12]} Ra8 {[%emt 0:01:33]} (36... Kd7 $17 {Strongly threatening ...h4.} 37. Ke3 Bg6 38. Nc5+ Ke7) 37. Bc5+ $2 {[%emt 0:01:46]} (37. Nc5 $1 $11 {and White stays safe.}) 37... Kd7 {[%emt 0:00:41] White must now prevent ...Kc6.} 38. Nd6 {[%emt 0:02:17] [#]} Be4 {[%emt 0:00:10]} 39. g3 {[%emt 0:03:14]} h4 {[%emt 0:00:49]} 40. gxh4 {[%emt 0:00:14]} gxh4 {[%emt 0:00:05]} 41. Bf2 {[%emt 0:31:30] [#]} Rh8 $1 {[%emt 0:08:55]} 42. Nxb5 {[%emt 0:00:00]} Bg2 {[%emt 0:02:29]} 43. Nd4 {[%emt 0:00:00]} Rb8 {[%emt 0:10:02]} (43... Bxh3 $17 {...Be6 is the strong threat.} 44. Nf3 a4 45. Nxh4 Bg4) 44. b4 {[%emt 0:00:00]} axb4 {[%emt 0:00:10]} 45. axb4 {[%emt 0:00:00][%cal Ba3b4,Bb4b5,Bb5b6][%mdl 32]} Re8 {[%emt 0:03:37]} 46. e6+ {[%emt 0:00:00]} Rxe6 {[%emt 0:05:24]} 47. Nxe6 {[%emt 0:00:00]} ({Not} 47. Bxh4 Rh6 48. Bg5 Rxh3 $17) 47... Kxe6 {[%emt 0:00:00]} 48. Bxh4 {[%emt 0:00:00]} Bxh3 $11 {[%emt 0:00:09] KB-KB} 49. b5 {[%emt 0:00:00]} Kd7 {[%emt 0:00:40]} 50. Bg3 {[%emt 0:00:00]} Bf1 {[%emt 0:00:49] The position is equal.} 51. b6 {[%emt 0:00:00] Threatening mate with b7.} Kc6 {[%emt 0:00:09]} 52. Bc7 {[%emt 0:00:00]} Bb5 {[%emt 0:00:18]} 53. Ke3 {[%emt 0:00:00]} Ba6 {[%emt 0:00:31]} 54. Kd4 {[%emt 0:00:00]} Bc4 {[%emt 0:00:11]} 55. Bd8 {[%emt 0:00:00]} Ba2 {[%emt 0:00:26] And White is the lucky defender.   Weighted Error Value: White=0.23 (precise) /Black=0.20 (precise)} 1/2-1/2

[Event "DFMM-LV 2023"]
[Site "Braunfels"]
[Date "2023.06.09"]
[Round "3.43"]
[White "Albayrak, Berrak"]
[Black "Bethge, Johanna"]
[Result "1/2-1/2"]
[Annotator "NA RC COMBH"]
[ECO "A04"]
[WhiteElo "1664"]
[BlackElo "1721"]
[PlyCount "48"]
[EventDate "2023.06.09"]
[EventType "team-tourn"]
[EventCountry "GER"]
[SourceTitle "playchess.com"]
[Source "ChessBase"]
[SourceQuality "1"]
[TimeControl "40/5400+30:1800+30"]

1. e4 {[%emt 0:00:03]} c5 {[%emt 0:00:13]} 2. Nf3 {[%emt 0:00:32]} d6 {[%emt 0:00:26]} 3. d3 {[%emt 0:00:28]} Nc6 {[%emt 0:01:02]} 4. g3 {[%emt 0:00:25]} g6 {[%emt 0:01:08]} 5. Bg2 {[%emt 0:00:29]} Bg7 {[%emt 0:00:46]} 6. O-O {[%emt 0:00:31]} e6 {[%emt 0:04:27]} 7. c3 {[%emt 0:01:05]} Nge7 {[%emt 0:01:42]} 8. d4 {[%emt 0:06:05]} Qb6 {[%emt 0:07:23]} 9. d5 {[%emt 0:13:40]} Ne5 {[%emt 0:01:55]} 10. Nbd2 {[%emt 0:05:22]} Nxf3+ {[%emt 0:08:50]} 11. Qxf3 {[%emt 0:09:51]} e5 {[%emt 0:03:32]} 12. Nc4 {[%emt 0:02:25]} Qc7 {[%emt 0:06:37]} 13. Bg5 {[%emt 0:09:54]} h5 {[%emt 0:06:56]} 14. h3 {[%emt 0:03:11]} f5 {[%emt 0:05:57]} 15. a4 {[%emt 0:08:52]} O-O {[%emt 0:11:58]} 16. Qe3 {[%emt 0:10:27]} Kh7 {[%emt 0:01:53]} 17. f4 {[%emt 0:02:27]} fxe4 {[%emt 0:04:20]} 18. Bxe4 {[%emt 0:05:46]} Bxh3 {[%emt 0:06:54]} 19. Rf2 {[%emt 0:00:17]} Nf5 {[%emt 0:01:42]} 20. Qd3 {[%emt 0:00:55]} exf4 {[%emt 0:01:26]} 21. Bxf4 {[%emt 0:02:46]} Rad8 {[%emt 0:00:22]} 22. Rh2 {[%emt 0:01:28]} Bg4 {[%emt 0:00:20]} 23. Ne3 {[%emt 0:01:12]} Kg8 {[%emt 0:02:05]} 24. Nxg4 {[%emt 0:02:42]} hxg4 {[%emt 0:00:18]} 1/2-1/2

[Event "DFMM-LV 2023"]
[Site "Braunfels"]
[Date "2023.06.09"]
[Round "3.44"]
[White "Dietrich, Mareike"]
[Black "Prinzen, Siri Marleen"]
[Result "1/2-1/2"]
[Annotator "NA RC COMBH"]
[ECO "B12"]
[WhiteElo "1771"]
[BlackElo "1724"]
[PlyCount "63"]
[EventDate "2023.06.09"]
[EventType "team-tourn"]
[EventCountry "GER"]
[SourceTitle "playchess.com"]
[Source "ChessBase"]
[SourceQuality "1"]
[TimeControl "40/5400+30:1800+30"]

1. e4 {[%emt 0:00:01]} c6 {[%emt 0:00:05]} 2. d4 {[%emt 0:00:04]} d5 {[%emt 0:00:04]} 3. e5 {[%emt 0:00:04]} c5 {[%emt 0:00:04]} 4. dxc5 {[%emt 0:00:52]} e6 {[%emt 0:00:07]} 5. a3 {[%emt 0:01:12]} Nc6 {[%emt 0:05:43]} 6. Nf3 {[%emt 0:00:22]} Bxc5 {[%emt 0:03:25]} 7. b4 {[%emt 0:00:25]} Bb6 {[%emt 0:01:58]} 8. Bb2 {[%emt 0:01:19]} Nge7 {[%emt 0:01:51]} 9. Bd3 {[%emt 0:00:40]} Bc7 {[%emt 0:03:11]} 10. Qe2 {[%emt 0:01:19]} Ng6 {[%emt 0:03:39]} 11. g3 {[%emt 0:02:31]} Bd7 {[%emt 0:02:53]} 12. O-O {[%emt 0:04:26]} Qb8 {[%emt 0:04:16]} 13. Re1 {[%emt 0:02:03]} a6 {[%emt 0:02:45]} 14. c4 {[%emt 0:01:44]} dxc4 {[%emt 0:04:16]} 15. Bxc4 {[%emt 0:01:19]} b5 {[%emt 0:00:57]} 16. Bd3 {[%emt 0:00:30]} Nce7 {[%emt 0:01:09]} 17. Nc3 {[%emt 0:06:49]} Bc6 {[%emt 0:03:41]} 18. Nd1 {[%emt 0:11:53]} Qb7 {[%emt 0:22:41]} 19. Nd2 {[%emt 0:12:34]} Rd8 {[%emt 0:06:23]} 20. Ne4 {[%emt 0:04:56]} Nd5 {[%emt 0:08:36]} 21. Rc1 {[%emt 0:03:33]} O-O {[%emt 0:07:03]} 22. Nc5 {[%emt 0:03:33]} Qa8 {[%emt 0:00:32]} 23. Qc2 {[%emt 0:03:03]} Nde7 {[%emt 0:02:17]} 24. h4 {[%emt 0:02:57]} Rfe8 {[%emt 0:01:57]} 25. h5 {[%emt 0:05:32]} Nf8 {[%emt 0:00:05]} 26. Nc3 {[%emt 0:04:08]} Bb6 {[%emt 0:02:24]} 27. N3e4 {[%emt 0:01:50]} Bxc5 {[%emt 0:00:24]} 28. Nxc5 {[%emt 0:02:30]} h6 {[%emt 0:02:29]} 29. Ne4 {[%emt 0:04:51]} Nf5 {[%emt 0:02:24]} 30. Bf1 {[%emt 0:07:52]} Rc8 {[%emt 0:03:51]} 31. Qe2 {[%emt 0:06:14]} Bxe4 {[%emt 0:01:25]} 32. Qxe4 {[%emt 0:00:07]} 1/2-1/2

[Event "DFMM-LV 2023"]
[Site "Braunfels"]
[Date "2023.06.09"]
[Round "3.45"]
[White "Stark, Amalia"]
[Black "Kohl, Natalie"]
[Result "1-0"]
[Annotator "NA RC COMBH"]
[ECO "B90"]
[WhiteElo "1499"]
[BlackElo "1504"]
[PlyCount "73"]
[EventDate "2023.06.09"]
[EventType "team-tourn"]
[EventCountry "GER"]
[SourceTitle "playchess.com"]
[Source "ChessBase"]
[SourceQuality "1"]
[TimeControl "40/5400+30:1800+30"]

1. e4 {[%emt 0:00:03]} c5 {[%emt 0:00:31]} 2. Nf3 {[%emt 0:00:08]} d6 {[%emt 0:00:34]} 3. d4 {[%emt 0:00:14]} cxd4 {[%emt 0:00:34]} 4. Nxd4 {[%emt 0:00:07]} Nf6 {[%emt 0:00:59]} 5. Nc3 {[%emt 0:00:15]} a6 {[%emt 0:01:02]} 6. a4 {[%emt 0:01:45]} e5 {[%emt 0:01:55]} 7. Nf3 {[%emt 0:00:16]} Nc6 {[%emt 0:03:05]} 8. h3 {[%emt 0:00:24]} Be7 {[%emt 0:03:20]} 9. Bc4 {[%emt 0:00:32]} O-O {[%emt 0:00:41]} 10. Be3 {[%emt 0:01:12]} h6 {[%emt 0:04:45]} 11. Qd2 {[%emt 0:00:55]} Na5 {[%emt 0:14:33]} 12. Ba2 {[%emt 0:02:43]} b5 {[%emt 0:04:08]} 13. Qe2 {[%emt 0:12:31]} Bd7 {[%emt 0:27:37]} 14. Nd5 {[%emt 0:04:59]} Nc4 {[%emt 0:04:41]} 15. Bxc4 {[%emt 0:00:28]} bxc4 {[%emt 0:00:22]} 16. Bb6 {[%emt 0:00:25]} Qe8 {[%emt 0:08:09]} 17. Nc7 {[%emt 0:00:24]} Qb8 {[%emt 0:10:35]} 18. Nxa8 {[%emt 0:00:11]} Qxa8 {[%emt 0:01:36]} 19. Nd2 {[%emt 0:00:16]} d5 {[%emt 0:04:34]} 20. O-O {[%emt 0:01:21]} Qb7 {[%emt 0:01:59]} 21. a5 {[%emt 0:00:21]} Bb5 {[%emt 0:01:20]} 22. c3 {[%emt 0:01:10]} Rc8 {[%emt 0:00:59]} 23. Qe3 {[%emt 0:03:12]} dxe4 {[%emt 0:00:23]} 24. Rfe1 {[%emt 0:00:28]} Nd5 {[%emt 0:00:54]} 25. Qxe4 {[%emt 0:00:43]} Bd6 {[%emt 0:01:47]} 26. Qg4 {[%emt 0:02:27]} Bd7 {[%emt 0:00:08]} 27. Qf3 {[%emt 0:00:44]} f5 {[%emt 0:00:44]} 28. Rad1 {[%emt 0:02:18]} e4 {[%emt 0:01:03]} 29. Nxe4 {[%emt 0:00:47]} fxe4 {[%emt 0:00:01]} 30. Qxe4 {[%emt 0:00:09]} Re8 {[%emt 0:00:05]} 31. Qxd5+ {[%emt 0:01:08]} Qxd5 {[%emt 0:00:08]} 32. Rxe8+ {[%emt 0:00:06]} Bxe8 {[%emt 0:00:01]} 33. Rxd5 {[%emt 0:00:10]} Be7 {[%emt 0:02:59]} 34. Bd8 {[%emt 0:02:25]} Bc6 {[%emt 0:00:36]} 35. Rd4 {[%emt 0:00:36]} Bf6 {[%emt 0:00:39]} 36. Bxf6 {[%emt 0:00:20]} gxf6 {[%emt 0:00:05]} 37. Rxc4 {[%emt 0:00:16]} 1-0

[Event "DFMM-LV 2023"]
[Site "Braunfels"]
[Date "2023.06.09"]
[Round "3.46"]
[White "Loos, Tilda"]
[Black "Alferova, Emily"]
[Result "1/2-1/2"]
[Annotator "NA RC COMBH"]
[ECO "C54"]
[WhiteElo "1401"]
[BlackElo "1612"]
[PlyCount "38"]
[EventDate "2023.06.09"]
[EventType "team-tourn"]
[EventCountry "GER"]
[SourceTitle "playchess.com"]
[Source "ChessBase"]
[SourceQuality "1"]
[TimeControl "40/5400+30:1800+30"]

1. e4 {[%emt 0:01:15]} e5 {[%emt 0:01:05]} 2. Nf3 {[%emt 0:00:06]} Nc6 {[%emt 0:00:05]} 3. Bc4 {[%emt 0:00:04]} Bc5 {[%emt 0:00:06]} 4. c3 {[%emt 0:00:05]} Nf6 {[%emt 0:00:22]} 5. d4 {[%emt 0:00:08]} exd4 {[%emt 0:00:41]} 6. cxd4 {[%emt 0:00:06]} Bb4+ {[%emt 0:01:56]} 7. Bd2 {[%emt 0:00:15]} Nxe4 {[%emt 0:12:50]} 8. Bxb4 {[%emt 0:06:21]} Nxb4 {[%emt 0:02:02]} 9. Bxf7+ {[%emt 0:05:10]} Kxf7 {[%emt 0:25:59]} 10. Qb3+ {[%emt 0:00:30]} d5 {[%emt 0:02:23]} 11. Qxb4 {[%emt 0:01:06]} Re8 {[%emt 0:05:44]} 12. O-O {[%emt 0:01:20]} c6 {[%emt 0:06:39]} 13. Nc3 {[%emt 0:02:04]} Nxc3 {[%emt 0:20:31]} 14. Qxc3 {[%emt 0:00:14]} Bf5 {[%emt 0:06:13]} 15. Ne5+ {[%emt 0:00:56]} Kg8 {[%emt 0:00:51]} 16. Qf3 {[%emt 0:00:53]} Qf6 {[%emt 0:02:36]} 17. Rfe1 {[%emt 0:01:07]} Be4 {[%emt 0:07:08]} 18. Qxf6 {[%emt 0:00:35]} gxf6 {[%emt 0:00:06]} 19. Ng4 {[%emt 0:00:16]} Kf7 {[%emt 0:01:08]} 1/2-1/2

[Event "DFMM-LV 2023"]
[Site "Braunfels"]
[Date "2023.06.10"]
[Round "4.1"]
[White "Agrest, Inna"]
[Black "Koehler, Inken"]
[Result "1-0"]
[Annotator "TA"]
[ECO "B32"]
[WhiteElo "2287"]
[BlackElo "2008"]
[PlyCount "99"]
[EventDate "2023.06.09"]
[EventType "team-tourn"]
[EventCountry "GER"]
[SourceTitle "playchess.com"]
[Source "ChessBase"]
[SourceQuality "1"]
[TimeControl "40/5400+30:1800+30"]

{[%evp 16,99,19,21,36,16,33,31,33,21,24,28,20,33,98,95,86,70,93,97,176,79,260,232,343,353,420,397,413,402,367,371,361,352,347,337,1023,998,963,-51,-27,-106,-98,-108,-91,-116,-109,-93,-59,-82,-97,-96,-14,-14,0,0,0,0,0,0,426,204,1065,944,1058,1025,1010,981,765,683,29983,4610,29984,29985,29984,29983,29983,29984,29984,29985,29985,29986,29986,29987,29987,29988]} 1. e4 {[%emt 0:00:03]} c5 {[%emt 0:00:05]} 2. Nf3 {[%emt 0:00:05]} Nc6 {[%emt 0:00:04]} 3. d4 {[%emt 0:00:06]} cxd4 {[%emt 0:00:06]} 4. Nxd4 {[%emt 0:00:02]} e5 {[%emt 0:00:10]} 5. Nb5 {[%emt 0:00:29]} a6 {[%emt 0:00:11]} 6. Nd6+ {[%emt 0:00:10]} Bxd6 {[%emt 0:00:05]} 7. Qxd6 {[%emt 0:00:03]} Qf6 {[%emt 0:00:07]} 8. Qd2 {[%emt 0:01:15]} Nge7 {[%emt 0:00:29]} 9. Nc3 {[%emt 0:04:53]} O-O {[%emt 0:08:53] B32: Sicilian: Löwenthal and Kalashnikov Variations.} 10. b3 {[%emt 0:02:05]} b5 {[%emt 0:12:16]} 11. Bb2 {[%emt 0:19:37]} Nd4 {[%emt 0:09:24] White is slightly better.} 12. Bd3 {[%emt 0:04:30]} Bb7 {[%emt 0:04:05]} 13. O-O-O {[%emt 0:07:18] [#]} Rac8 $146 {[%emt 0:02:15]} ({Predecessor:} 13... Rfc8 14. Kb1 Rc7 15. Rhf1 Rac8 16. f4 Qh6 17. Nd5 Nxd5 18. exd5 Nxc2 19. Rc1 Nd4 20. Rxc7 Rxc7 {1-0 McClymont,B (2389)-Mikalsen,E (2361) Melbourne Australasian GM 2019 (4)}) 14. Kb1 {[%emt 0:02:52][%cal Of2f4]} Ng6 {[%emt 0:07:30]} ({Better is} 14... Ne6 $14) 15. g3 {[%emt 0:03:18][%cal Of2f4]} Qf3 {[%emt 0:01:58]} 16. Rhe1 {[%emt 0:02:39]} Rfd8 {[%emt 0:05:16]} 17. Re3 {[%emt 0:16:22]} Qf6 {[%emt 0:04:16] [#]} (17... Qh5 $16) 18. f4 {[%emt 0:02:31]} (18. Nd5 $1 $18 {[%mdl 512] and White stays clearly on top.} Bxd5 (18... Qg5 19. f4) 19. exd5) 18... Qb6 {[%emt 0:20:52]} (18... exf4 $16 {was necessary.} 19. gxf4 Qxf4) 19. Nd5 $18 {[%emt 0:09:43]} Bxd5 {[%emt 0:02:04]} (19... Qd6 $142 20. fxe5 Qc5) 20. exd5 {[%emt 0:00:06]} d6 {[%emt 0:01:11]} 21. c3 {[%emt 0:03:55]} exf4 {[%emt 0:04:21]} 22. gxf4 {[%emt 0:00:14]} Nxf4 {[%emt 0:02:43]} 23. cxd4 {[%emt 0:00:38]} Nxd3 {[%emt 0:00:28]} 24. Qxd3 {[%emt 0:00:43]} Qb7 {[%emt 0:01:03]} 25. Rh3 {[%emt 0:02:30]} h6 {[%emt 0:00:26]} (25... g6 26. Qe3 Re8) 26. Rg1 {[%emt 0:00:40]} Kh8 {[%emt 0:02:51] [#]} 27. Rxh6+ $2 {[%emt 0:05:17]} gxh6 $15 {[%emt 0:00:05]} 28. Qh3 {[%emt 0:00:05]} (28. Qd2 $11 f6 29. Qf4 Qh7+ 30. Ka1) 28... f6 $17 {[%emt 0:00:39]} 29. Ka1 {[%emt 0:06:32]} Qh7 {[%emt 0:01:02] And now ...Rg8 would win.} (29... Qxd5 $2 30. Qxh6#) 30. Qe6 {[%emt 0:00:29]} Rf8 {[%emt 0:02:01]} 31. Qxd6 {[%emt 0:01:28]} Qc7 {[%emt 0:01:40][%mdl 64] Deflection} 32. Qe6 {[%emt 0:02:42] Threatens to win with d6.} Qxh2 {[%emt 0:01:40]} 33. Qe1 {[%emt 0:00:22]} Rc2 {[%emt 0:01:17]} (33... Rc7 $1 $17 {[%cal Oc7e7] Strongly threatening ...Re7!} 34. Rh1 Qf4) 34. Rh1 $11 {[%emt 0:01:02]} Qf4 {[%emt 0:01:45] aiming for ...Rh2.} (34... Re2 $2 35. Qc1 Rxb2 36. Rxh2 Rxh2 37. d6 $18) (34... Qg2 {with more complications.} 35. Rxh6+ Kg7 36. Rh1 Re8) 35. d6 $1 {[%emt 0:01:40]} Rxb2 {[%emt 0:02:25]} 36. Kxb2 {[%emt 0:00:09]} Qxd4+ {[%emt 0:00:03]} (36... Qxd6 $2 37. Qe3 Kg8 38. Rxh6 $18 (38. Qxh6 Qxd4+ 39. Ka3 Qc5+ 40. Kb2 Qe5+ 41. Ka3 b4+ {[%mdl 64] Decoy} 42. Kxb4 Rb8+ 43. Ka3 Qd6+ 44. Kb2 Qe5+ 45. Kb1 Qe4+ 46. Kc1 Rc8+ 47. Kb2 Qe5+ 48. Kb1 Qe4+ 49. Kb2 Qe5+ 50. Kb1 Qe4+ 51. Kb2 $11)) 37. Qc3 {[%emt 0:00:25]} Qxc3+ {[%emt 0:00:46][%mdl 8192]} (37... Qxd6 $11 {and Black is okay.} 38. Qe3 Qe5+ 39. Qxe5 fxe5) 38. Kxc3 {[%emt 0:00:04][%mdl 4096] Endgame KR-KR} Rd8 $2 {[%emt 0:00:07]} (38... Kg7) 39. Rd1 $18 {[%emt 0:00:13]} ({Inferior is} 39. Rxh6+ Kg7 40. Rh1 Rxd6 41. Rg1+ Kf7 $17) 39... Kg7 {[%emt 0:01:10] [#]} 40. Kb4 $1 {[%emt 0:00:14]} Kf7 {[%emt 0:01:14] [#]} 41. Kc5 $1 {[%emt 0:32:37]} Ke6 {[%emt 0:09:04]} 42. Re1+ {[%emt 0:00:00]} Kd7 {[%emt 0:04:49] ...Rc8+ is the strong threat.} 43. Re7+ {[%emt 0:00:00]} Kc8 {[%emt 0:00:03]} 44. Kc6 {[%emt 0:00:00] White mates.} Rg8 {[%emt 0:00:49]} 45. Ra7 {[%emt 0:00:00][%cal Ra7a8]} Kb8 {[%emt 0:00:21]} 46. Rxa6 {[%emt 0:00:00]} Rc8+ {[%emt 0:02:52]} 47. Kd7 {[%emt 0:00:00]} Rc2 {[%emt 0:01:26]} 48. Rb6+ {[%emt 0:00:00]} Ka7 {[%emt 0:00:05]} 49. Rc6 {[%emt 0:00:00]} Rg2 {[%emt 0:06:01]} 50. Kc7 {[%emt 0:00:00] A cool game by Agrest.   Weighted Error Value: White=0.26 (precise) /Black=0.53} 1-0

[Event "DFMM-LV 2023"]
[Site "Braunfels"]
[Date "2023.06.10"]
[Round "4.2"]
[White "Kopylov, Luba"]
[Black "Voicu-Jagodzinsky, Carmen"]
[Result "1/2-1/2"]
[Annotator "TA"]
[ECO "D02"]
[WhiteElo "1993"]
[BlackElo "2297"]
[PlyCount "44"]
[EventDate "2023.06.09"]
[EventType "team-tourn"]
[EventCountry "GER"]
[SourceTitle "playchess.com"]
[Source "ChessBase"]
[SourceQuality "1"]
[TimeControl "40/5400+30:1800+30"]

{[%evp 15,44,-17,0,-34,-6,-21,-3,-39,-30,-37,-39,-73,-74,-102,-60,-94,-43,-52,-47,-73,-68,-66,-8,-24,-6,-13,0,0,0,0,0]} 1. d4 {[%emt 0:00:03]} Nf6 {[%emt 0:00:13]} 2. Nf3 {[%emt 0:00:25]} e6 {[%emt 0:01:25]} 3. g3 {[%emt 0:03:17]} d5 {[%emt 0:03:49]} 4. Bg2 {[%emt 0:00:20]} Be7 {[%emt 0:00:54]} 5. O-O {[%emt 0:00:14]} O-O {[%emt 0:00:06]} 6. Nbd2 {[%emt 0:00:23]} c5 {[%emt 0:02:08]} 7. c3 {[%emt 0:05:48]} Nc6 {[%emt 0:04:22]} 8. dxc5 {[%emt 0:09:09]} Bxc5 {[%emt 0:00:17]} 9. Nb3 {[%emt 0:00:28] D02: 1 d4 d5 2 Nf3 sidelines, including 2...Nf6 3 g3 and 2...Nf6 3 Bf4.} Be7 {[%emt 0:06:24]} 10. Nbd4 {[%emt 0:10:02] [#]} h6 $146 {[%emt 0:05:16]} ({Predecessor:} 10... Nxd4 11. Nxd4 e5 12. Nf3 Qc7 13. Qc2 h6 14. b3 Bc5 15. Bb2 e4 16. Ne1 Bf5 17. e3 Be7 {1-0 Horvat,D (2181)-Bender,I (2224) Zagreb Damjanovic Memorial 3rd 2019 (4)}) 11. h3 {[%emt 0:08:03]} Re8 {[%emt 0:05:07]} 12. Nxc6 {[%emt 0:10:03]} bxc6 {[%emt 0:00:05]} 13. Ne5 {[%emt 0:00:11]} Qc7 {[%emt 0:03:23]} 14. f4 {[%emt 0:02:41]} c5 {[%emt 0:00:55]} 15. g4 {[%emt 0:08:52]} Ne4 {[%emt 0:08:29]} ({Black should try} 15... Bb7 $17) 16. Bxe4 {[%emt 0:05:47]} dxe4 {[%emt 0:00:03]} 17. Qa4 {[%emt 0:00:24][%csl LRe4,LRe8]} Bb7 {[%emt 0:00:42]} 18. Be3 {[%emt 0:01:34]} Red8 {[%emt 0:05:50]} (18... f6 $1 $15 19. Nc4 a5) 19. Rad1 $1 $11 {[%emt 0:01:28]} Rd5 {[%emt 0:06:00]} (19... f6 $5 {[%cal Rf6e5]} 20. Nc4 Bc6 $11) 20. c4 $1 {[%emt 0:04:02] The position is equal.} Rxd1 {[%emt 0:04:09]} 21. Rxd1 {[%emt 0:00:10] [#] aiming for Rd7.} Bd6 $1 {[%emt 0:00:19]} 22. Qd7 {[%emt 0:09:07]} Bxe5 {[%emt 0:07:08] Weighted Error Value: White=0.16 (very precise) /Black=0.21 (precise)} 1/2-1/2